bitfinex/quotes_SOLUSD_20240612
["timestamp","ask_amount","ask_price","bid_price","bid_amount"]
[1718216961890,0.17,157.97,157.85,11.7198]
[1718216962095,0.17,157.96,157.83,5.17718553]
[1718216962300,2.3428,157.93,157.84,2.344]
[1718216962700,2.343,157.92,157.83,2.3442]
[1718216963008,0.34,157.94,157.84,2.3441]
[1718216963009,2.3428,157.93,157.84,2.3441]
[1718216963215,0.17,157.92,157.84,2.3441]
[1718216963804,0.17,157.92,157.8,16.4128]
[1718216964127,2.513,157.92,157.8,114.0682]
[1718216964401,0.17,157.92,157.84,2.3441]
[1718216964608,110.0,158.04,157.84,2.3441]
[1718216964609,11.26540324,158.09,157.87,100.0]
[1718216964804,2.341,158.05,157.93,4.6854]
[1718216965006,2.341,158.05,157.95,2.3423]
[1718216965007,2.3411,158.05,157.95,2.3423]
[1718216965336,2.341,158.05,157.92,26.9]
[1718216965510,4.6812,158.08,157.94,4.6852]
[1718216965511,2.3409,158.06,157.94,4.6852]
[1718216965805,2.3407,158.07,157.97,2.3421]
[1718216966107,11.703,158.08,157.94,0.17]
[1718216966412,2.3411,158.04,157.94,0.17]
[1718216966912,2.3411,158.05,157.94,0.17]
[1718216967209,2.3414,158.03,157.93,20.34]
[1718216967510,2.3414,158.03,157.94,2.3426]
[1718216967692,0.17,158.04,157.96,2.3423]
[1718216968005,0.51,158.06,157.95,2.3424]
[1718216968006,2.5111,158.05,157.95,2.3424]
[1718216968321,2.3415,158.02,157.92,2.3428]
[1718216968487,2.3417,158.01,157.91,2.343]
[1718216968688,2.3421,157.98,157.85,7.0319]
[1718216969205,0.17,157.97,157.89,2.3432]
[1718216969709,0.17,157.97,157.9,2.3432]
[1718216969927,7.0247,158.02,157.85,9.3759]
[1718216969928,18.95,158.06,157.89,0.34]
[1718216970096,2.3414,158.03,157.93,2.3427]
[1718216970406,4.6821,158.05,157.91,0.17]
[1718216970407,7.0232,158.05,157.91,0.17]
[1718216970613,2.3416,158.01,157.92,2.3429]
[1718216970908,11.706,158.04,157.9,0.34]
[1718216970909,2.3418,158.0,157.91,2.343]
[1718216971112,2.3419,157.99,157.9,22.3432]
[1718216971316,2.3419,157.99,157.9,2.3432]
[1718216971827,0.17,158.0,157.91,2.343]
[1718216971993,0.17,158.0,157.92,2.3429]
[1718216972194,2.5117,158.0,157.91,2.343]
[1718216972713,0.17,158.0,157.91,2.343]
[1718216972914,0.17,158.0,157.92,2.3429]
[1718216973293,0.17,158.0,157.91,2.343]
[1718216973791,0.17,158.0,157.92,2.3429]
[1718216973992,115.18295486,158.12,157.9,20.0]
[1718216973993,29.3634,158.07,157.91,0.17]
[1718216974302,2.3411,158.05,157.96,2.3422]
[1718216974504,2.3409,158.06,157.97,2.3421]
[1718216974726,2.3408,158.07,157.95,7.0274]
[1718216975015,4.6805,158.1,157.99,2.3419]
[1718216975224,2.3405,158.09,158.0,2.3416]
[1718216975436,2.3405,158.09,157.96,20.51]
[1718216975437,2.341,158.05,157.96,20.0]
[1718216975719,2.341,158.05,157.95,2.3424]
[1718216975928,2.3411,158.04,157.95,22.3424]
[1718216976099,2.3411,158.05,157.95,22.3424]
[1718216976289,2.3411,158.05,157.95,20.0]
[1718216976492,18.95,158.09,157.96,4.6846]
[1718216976493,0.17,158.09,157.96,4.6846]
[1718216976694,11.7009,158.11,157.97,0.17]
[1718216976897,2.3403,158.1,157.98,11.7102]
[1718216977137,2.3404,158.09,157.98,4.6841]
[1718216977315,112.78023213,158.16,157.97,20.34]
[1718216977522,2.3406,158.08,157.99,2.3418]
[1718216978019,4.6794,158.14,157.98,0.17]
[1718216978222,2.3399,158.13,158.01,11.7078]
[1718216978597,2.3397,158.14,158.05,2.3409]
[1718216978798,2.3397,158.14,158.04,2.3411]
[1718216979003,12.56463085,158.2,158.05,1.26404174]
[1718216979004,11.697,158.19,158.05,1.26404174]
[1718216979312,4.6781,158.19,158.05,0.17]
[1718216979619,2.3393,158.17,158.06,0.17]
[1718216979792,2.3391,158.18,158.06,0.17]
[1718216979996,2.3392,158.17,158.06,0.17]
[1718216980407,4.677,158.22,158.08,0.17]
[1718216980607,40.60480297,158.24,158.08,0.51]
[1718216980807,2.3389,158.2,158.08,20.51]
[1718216981201,2.3389,158.19,158.09,2.3403]
[1718216981602,18.95,158.22,158.08,20.34]
[1718216981916,2.3392,158.17,158.07,2.3406]
[1718216982220,0.17,158.15,158.05,20.0]
[1718216982439,2.34,158.12,158.01,20.0]
[1718216982724,2.3399,158.13,158.03,2.3412]
[1718216983019,2.3397,158.14,158.01,31.7076]
[1718216983316,2.3398,158.13,158.04,2.3411]
[1718216983490,0.17,158.14,158.02,0.17]
[1718216983699,0.17,158.14,158.06,2.3408]
[1718216984026,2.3392,158.17,158.05,20.0]
[1718216984197,0.17,158.16,158.07,2.3406]
[1718216984517,2.5094,158.16,158.07,2.3406]
[1718216984718,0.17,158.16,158.07,2.3406]
[1718216984923,0.17,158.16,158.05,22.3409]
[1718216985230,0.17,158.15,158.04,20.51]
[1718216985525,0.34,158.15,158.05,22.341]
[1718216985721,0.17,158.14,158.04,2.3411]
[1718216985923,0.68,158.14,158.02,20.0]
[1718216986134,0.51,158.14,158.05,2.3409]
[1718216986337,2.3392,158.17,158.08,2.3405]
[1718216986629,4.678,158.19,158.1,2.3402]
[1718216986630,2.3389,158.19,158.1,2.3402]
[1718216987013,2.3391,158.18,158.09,2.3404]
[1718216987214,4.6773,158.21,158.04,200.0]
[1718216987215,18.95,158.22,158.04,100.0]
[1718216987433,16.3724,158.2,158.05,20.0]
[1718216987596,2.3393,158.17,158.07,2.3407]
[1718216988229,0.51,158.16,157.96,100.0]
[1718216988524,2.5096,158.15,158.05,2.3409]
[1718216988721,2.3397,158.14,158.05,2.3409]
[1718216988920,0.17,158.13,158.05,2.3409]
[1718216989301,2.3397,158.14,158.05,2.3409]
[1718216989497,2.3394,158.16,158.07,2.3406]
[1718216989701,2.3394,158.16,158.04,4.8522]
[1718216989702,0.17,158.16,158.04,4.8522]
[1718216989927,2.3395,158.15,158.06,2.3408]
[1718216990123,2.3396,158.15,158.05,20.17]
[1718216990424,2.3396,158.15,158.05,22.5109]
[1718216990626,2.3397,158.14,158.05,22.5109]
[1718216990812,2.3397,158.14,158.05,2.3409]
[1718216991014,0.34,158.16,158.06,2.3408]
[1718216991015,2.3396,158.15,158.06,2.3408]
[1718216991214,2.5096,158.14,158.05,2.3409]
[1718216991411,2.5098,158.13,158.03,22.3412]
[1718216991613,0.17,158.12,158.02,20.0]
[1718216991809,0.34,158.12,158.04,2.3411]
[1718216992223,2.3402,158.11,158.01,4.87167]
[1718216992410,2.3402,158.1,158.01,4.87167]
[1718216992617,2.3402,158.1,158.01,2.53017]
[1718216992618,2.3407,158.08,158.01,2.53017]
[1718216993019,0.51,158.09,157.94,4.685]
[1718216993204,2.3409,158.06,157.95,4.6849]
[1718216993399,2.3409,158.06,157.98,2.342]
[1718216993633,2.3407,158.07,157.98,2.342]
[1718216994131,2.5106,158.08,157.99,2.3418]
[1718216994321,0.17,158.07,157.99,2.3418]
[1718216994520,2.5108,158.07,157.98,2.342]
[1718216994710,0.17,158.07,157.99,2.3417]
[1718216995227,0.17,158.07,157.96,20.0]
[1718216995520,2.3409,158.06,157.95,4.6849]
[1718216996510,0.17,158.07,157.96,5.1946]
[1718216996711,0.17,158.07,157.99,2.3418]
[1718216997333,2.5107,158.07,157.98,2.3419]
[1718216997520,0.17,158.06,157.98,2.3419]
[1718216997841,0.68,158.06,157.98,2.342]
[1718216998018,0.17,158.06,157.99,2.3418]
[1718216998327,0.51,158.07,157.99,2.3418]
[1718216999405,2.8507,158.07,157.99,2.3418]
[1718216999605,0.51,158.07,157.97,20.0]
[1718216999828,0.51,158.07,157.98,2.342]
[1718216999829,2.8508,158.07,157.98,2.342]
[1718217000032,2.8508,158.07,157.97,20.0]
[1718217000359,2.3399,158.13,158.02,4.6828]
[1718217000509,6.58162233,158.21,158.0,0.17]
[1718217000832,18.95,158.16,158.02,4.6827]
[1718217001143,4.6812,158.08,157.94,2.3425]
[1718217001438,2.3407,158.07,157.98,2.342]
[1718217001644,7.0223,158.07,157.93,20.0]
[1718217001809,2.3412,158.04,157.95,2.3425]
[1718217002009,28.3125,158.08,157.93,20.0]
[1718217002316,23.8022,158.05,157.93,20.0]
[1718217002625,2.5113,158.03,157.89,7.0301]
[1718217002809,2.8515,158.02,157.9,20.0]
[1718217003008,2.8515,158.02,157.89,2.3433]
[1718217003009,2.3419,157.99,157.89,2.3433]
[1718217003208,0.68,158.01,157.85,126.9]
[1718217003409,2.8517,158.01,157.88,4.687]
[1718217003630,0.34,158.0,157.9,4.6862]
[1718217003840,0.17,157.99,157.9,4.6862]
[1718217004011,0.17,157.99,157.89,2.3433]
[1718217004012,2.682,157.99,157.89,2.3433]
[1718217004332,2.682,157.99,157.9,2.3432]
[1718217004333,0.34,157.98,157.9,2.3432]
[1718217004534,0.17,157.96,157.86,2.682]
[1718217004736,0.17,157.96,157.87,2.3436]
[1718217004941,0.17,157.96,157.85,26.9]
[1718217005108,2.3425,157.95,157.85,2.3438]
[1718217005315,0.17,157.94,157.81,286.5]
[1718217005510,5.02482268,158.09,157.86,100.0]
[1718217005739,5.02482268,158.09,157.85,26.9]
[1718217005740,100.0,158.07,157.85,26.9]
[1718217006038,2.3413,158.03,157.93,2.3427]
[1718217006246,2.3413,158.03,157.92,2.3428]
[1718217006414,2.3411,158.04,157.94,2.3426]
[1718217006626,2.3409,158.06,157.96,2.3422]
[1718217006943,4.681,158.09,157.94,46.9]
[1718217007141,2.341,158.06,157.96,2.3422]
[1718217007521,25.9724,158.07,157.94,20.0]
[1718217007821,14.0456,158.06,157.91,20.0]
[1718217008031,0.17,158.02,157.94,2.3426]
[1718217008229,3.0215,158.02,157.91,20.0]
[1718217008425,0.17,158.0,157.91,2.343]
[1718217008641,2.8517,158.0,157.9,2.3431]
[1718217008850,0.17,157.99,157.88,4.687]
[1718217009149,0.17,157.99,157.92,2.3429]
[1718217009346,0.51,158.0,157.9,20.0]
[1718217009656,0.51,158.0,157.92,2.3428]
[1718217009844,0.51,158.0,157.9,20.0]
[1718217010028,2.8517,158.0,157.89,24.6866]
[1718217010231,0.17,157.99,157.88,0.17]
[1718217010425,0.17,157.99,157.85,26.9]
[1718217010644,2.3425,157.95,157.86,2.3437]
[1718217010840,0.17,157.94,157.87,2.3436]
[1718217011160,0.34,157.94,157.85,2.3439]
[1718217011442,0.51,157.93,157.85,2.3439]
[1718217011652,0.17,157.92,157.8,4.6893]
[1718217011823,0.34,157.92,157.79,26.9]
[1718217012027,2.8532,157.91,157.79,26.9]
[1718217012225,2.6832,157.9,157.78,11.7248]
[1718217012427,2.5132,157.9,157.78,11.7248]
[1718217012666,0.17,157.89,157.82,2.3443]
[1718217012830,0.34,157.89,157.82,2.3443]
[1718217013157,0.34,157.89,157.84,2.3441]
[1718217013352,0.17,157.89,157.82,2.3443]
[1718217013533,0.34,157.89,157.82,2.3443]
[1718217013734,0.17,157.88,157.82,2.3443]
[1718217013935,0.34,157.88,157.8,2.3445]
[1718217017166,2.3428,157.93,157.84,2.3441]
[1718217017666,4.6852,157.95,157.83,2.3442]
[1718217017667,2.3429,157.92,157.83,2.3442]
[1718217017964,0.17,157.91,157.84,2.344]
[1718217018139,0.51,157.92,157.84,2.344]
[1718217018462,0.51,157.92,157.82,20.0]
[1718217018463,0.34,157.92,157.82,20.0]
[1718217018664,0.34,157.92,157.83,4.6884]
[1718217018869,0.17,157.92,157.86,2.3438]
[1718217019045,0.17,157.92,157.79,120.17]
[1718217019046,0.51,157.92,157.84,20.0]
[1718217019245,0.34,157.92,157.86,2.3437]
[1718217019450,0.17,157.92,157.84,22.344]
[1718217019640,0.17,157.92,157.85,2.3439]
[1718217019838,0.51,157.93,157.85,2.3439]
[1718217020155,9.3669,158.01,157.83,0.17]
[1718217020455,4.6828,158.03,157.86,27.07]
[1718217020662,4.6828,158.03,157.89,4.6867]
[1718217020851,16.3913,158.01,157.89,2.3433]
[1718217021040,9.3693,157.97,157.86,2.3438]
[1718217021235,18.95,157.97,157.81,26.9]
[1718217021541,0.17,157.95,157.87,2.3436]
[1718217021743,0.17,157.95,157.81,26.9]
[1718217021744,0.17,157.93,157.85,2.3439]
[1718217021956,0.17,157.93,157.86,2.3438]
[1718217022156,0.17,157.93,157.84,20.0]
[1718217022338,0.17,157.93,157.87,2.3436]
[1718217022534,0.17,157.93,157.84,20.0]
[1718217022937,0.51,157.94,157.87,2.3436]
[1718217023248,0.17,157.93,157.84,20.0]
[1718217023447,0.17,157.93,157.82,20.0]
[1718217023749,0.17,157.89,157.81,2.3445]
[1718217023937,0.68,157.89,157.79,4.6895]
[1718217024139,0.17,157.89,157.81,4.6891]
[1718217024333,0.17,157.93,157.84,4.6881]
[1718217024537,2.3423,157.96,157.88,2.3435]
[1718217024735,2.3422,157.97,157.88,2.3435]
[1718217024965,4.6842,157.98,157.87,2.3436]
[1718217025257,2.3425,157.95,157.87,2.3436]
[1718217025464,2.3424,157.96,157.87,2.3436]
[1718217025667,2.3411,158.05,157.92,4.6856]
[1718217025854,259.6,158.08,157.92,26.9]
[1718217026057,2.3407,158.07,157.95,4.6848]
[1718217026238,259.6,158.08,157.99,2.3418]
[1718217026439,278.6,158.08,157.95,2.3424]
[1718217026755,4.6798,158.13,157.94,227.07]
[1718217026941,2.34,158.12,158.02,2.3413]
[1718217027263,2.3402,158.11,158.01,2.3415]
[1718217027467,19.0,158.09,157.95,20.0]
[1718217027657,2.341,158.05,157.95,20.0]
[1718217027975,9.3614,158.1,157.91,31.586]
[1718217027976,2.3403,158.1,158.0,2.3416]
[1718217028270,7.62500297,158.15,158.02,2.3414]
[1718217028271,2.34,158.12,158.02,2.3414]
[1718217028437,2.3403,158.1,158.01,20.0]
[1718217028641,2.3401,158.11,158.02,2.3414]
[1718217028965,2.3397,158.14,158.01,4.6832]
[1718217029165,4.6786,158.17,158.04,2.341]
[1718217029371,2.3397,158.14,158.05,2.341]
[1718217029550,2.3397,158.14,158.04,2.3411]
[1718217030040,259.6,158.18,158.02,20.0]
[1718217030251,261.9391,158.18,158.09,2.3404]
[1718217030470,2.3393,158.17,158.05,20.0]
[1718217030670,2.3393,158.17,158.07,2.3406]
[1718217031043,259.6,158.18,158.05,20.0]
[1718217031044,278.6,158.18,158.05,20.0]
[1718217031244,2.3402,158.11,158.01,20.0]
[1718217031465,2.34,158.12,158.01,20.0]
[1718217031664,19.0,158.14,158.01,20.0]
[1718217031665,2.3399,158.13,158.01,20.0]
[1718217031947,2.3403,158.1,158.0,2.3416]
[1718217032147,2.3403,158.1,157.96,33.9268]
[1718217032148,2.34,158.12,157.99,7.0255]
[1718217032366,2.34,158.12,157.94,100.0]
[1718217032367,4.8508,158.1,157.93,7.0281]
[1718217032558,2.341,158.05,157.96,2.3423]
[1718217032762,2.5112,158.04,157.94,2.3425]
[1718217033280,0.17,158.04,157.97,2.3421]
[1718217033477,0.17,158.04,157.94,100.0]
[1718217033653,29.996445,158.16,158.03,2.3412]
[1718217033847,4.6785,158.17,158.05,2.3409]
[1718217034048,2.3395,158.16,158.06,2.3407]
[1718217034267,2.3393,158.17,158.08,2.3405]
[1718217034473,2.3395,158.15,158.06,2.3407]
[1718217034673,2.3395,158.15,158.03,2.3412]
[1718217034674,2.34,158.12,158.03,2.3412]
[1718217034873,2.3399,158.13,158.03,2.3412]
[1718217035061,19.0,158.16,158.04,2.3411]
[1718217035269,2.3395,158.15,158.06,2.3407]
[1718217035458,0.17,158.14,158.05,2.3409]
[1718217035658,0.68,158.14,158.04,22.3411]
[1718217035858,0.17,158.13,158.04,20.0]
[1718217036058,3.0198,158.13,158.02,20.0]
[1718217036271,3.0198,158.13,158.01,20.17]
[1718217036272,3.0199,158.13,158.01,20.17]
[1718217036475,0.68,158.13,158.01,20.0]
[1718217036658,2.3402,158.11,158.02,2.3414]
[1718217036984,0.17,158.09,158.0,20.0]
[1718217037163,0.17,158.1,158.03,2.3412]
[1718217037357,2.6802,158.1,158.01,20.0]
[1718217037558,0.17,158.1,158.01,20.0]
[1718217037959,0.17,158.1,158.05,2.3409]
[1718217038175,0.17,158.1,158.04,2.3411]
[1718217038376,0.17,158.1,157.99,0.17]
[1718217038575,2.6803,158.1,157.98,24.6839]
[1718217038880,0.34,158.1,158.01,4.6831]
[1718217039181,0.34,158.1,158.03,2.3412]
[1718217039358,0.34,158.1,158.01,20.0]
[1718217039783,2.6803,158.1,158.01,20.0]
[1718217040084,0.34,158.1,158.02,2.3414]
[1718217040383,492.25795189,158.23,158.02,4.6827]
[1718217040384,4.6788,158.16,158.02,4.6827]
[1718217040580,2.3398,158.13,158.04,2.3411]
[1718217040766,2.3397,158.14,158.05,2.341]
[1718217041083,2.3397,158.14,158.03,20.0]
[1718217041377,2.339,158.19,158.1,2.3402]
[1718217041569,2.3392,158.17,158.09,2.3404]
[1718217041765,384.7,158.23,158.06,20.0]
[1718217041976,2.3389,158.2,158.08,11.7026]
[1718217042183,2.3389,158.2,158.11,2.3401]
[1718217042395,403.7,158.23,158.1,4.6805]
[1718217042599,31.88699452,158.36,158.07,0.51]
[1718217042600,2.3382,158.24,158.15,2.3394]
[1718217042764,11.6898,158.26,158.11,4.6802]
[1718217042966,2.3383,158.24,158.15,2.3395]
[1718217043163,126.89,158.33,158.11,24.6802]
[1718217043164,100.0,158.31,158.12,20.0]
[1718217043468,2.3388,158.2,158.11,22.34]
[1718217043685,2.339,158.19,158.11,20.0]
[1718217043890,16.3688,158.23,158.07,20.17]
[1718217044092,2.3391,158.18,158.09,2.3403]
[1718217044298,2.3388,158.2,158.11,2.3401]
[1718217044603,0.68,158.19,158.07,20.0]
[1718217044807,3.0189,158.19,158.1,2.3402]
[1718217045184,2.3391,158.18,158.09,2.3403]
[1718217045407,0.51,158.17,158.09,2.3403]
[1718217045688,0.34,158.16,158.03,4.6825]
[1718217046002,0.34,158.16,157.96,9.99998739]
[1718217046003,0.34,158.16,158.08,2.3404]
[1718217046207,0.17,158.14,158.06,2.3407]
[1718217046374,0.34,158.14,158.04,4.6822]
[1718217046679,0.34,158.14,158.0,126.89]
[1718217046680,0.34,158.14,158.02,4.6829]
[1718217046889,0.17,158.11,157.99,4.6837]
[1718217047092,4.8504,158.11,157.99,2.3418]
[1718217047391,0.51,158.1,157.96,100.0]
[1718217047598,0.17,158.09,158.04,2.341]
[1718217047774,0.34,158.12,158.05,2.3409]
[1718217047973,0.34,158.12,158.02,4.6828]
[1718217047974,0.34,158.12,158.06,2.3408]
[1718217048174,2.3393,158.17,158.0,26.89]
[1718217048396,2.5095,158.15,158.07,2.3406]
[1718217048604,2.6797,158.14,158.03,4.6824]
[1718217048977,2.6797,158.14,158.03,24.6824]
[1718217049290,0.17,158.16,158.09,2.3403]
[1718217049486,2.3392,158.17,158.09,2.3403]
[1718217049798,2.3393,158.17,158.08,2.3405]
[1718217049984,2.3391,158.18,158.09,2.3403]
[1718217050193,2.339,158.19,158.1,2.3402]
[1718217050380,2.3394,158.16,158.07,22.3406]
[1718217050586,2.3394,158.16,158.06,20.0]
[1718217050895,2.5094,158.16,158.08,2.3405]
[1718217051096,2.5094,158.16,158.06,20.0]
[1718217051274,0.17,158.16,158.08,2.3405]
[1718217051479,0.51,158.16,158.08,2.3405]
[1718217052000,2.8494,158.16,158.08,2.3405]
[1718217052172,0.17,158.16,158.07,4.6814]
[1718217052377,0.17,158.16,158.1,2.3401]
[1718217052577,0.17,158.16,158.09,22.3403]
[1718217052798,2.5092,158.17,158.09,22.3403]
[1718217052976,0.34,158.16,158.06,2.3407]
[1718217053173,0.17,158.15,158.05,27.023]
[1718217053380,0.17,158.15,158.07,2.3406]
[1718217053697,0.17,158.15,158.08,2.3405]
[1718217054015,0.17,158.15,158.1,2.3402]
[1718217054195,30.6938,158.21,158.1,2.3402]
[1718217054378,2.3392,158.18,158.09,2.3403]
[1718217054578,2.5092,158.17,158.09,2.3403]
[1718217054880,0.17,158.17,158.09,4.6808]
[1718217055186,0.17,158.18,158.09,4.6807]
[1718217055187,0.51,158.18,158.09,4.6807]
[1718217055413,0.51,158.18,158.1,2.3402]
[1718217055778,0.51,158.18,158.08,29.3622]
[1718217055779,2.3388,158.2,158.08,36.3838]
[1718217055986,2.3386,158.21,158.09,9.3616]
[1718217056299,9.3526,158.25,158.12,2.3399]
[1718217056488,2.3387,158.21,158.12,2.3398]
[1718217056800,2.3387,158.21,158.13,2.3398]
[1718217056999,4.6768,158.23,158.15,2.3395]
[1718217057000,2.3384,158.23,158.15,2.3395]
[1718217057180,42.0469593,158.32,158.13,20.0]
[1718217057386,42.0469593,158.32,158.1,24.6804]
[1718217057387,4.6763,158.25,158.14,2.3396]
[1718217057700,2.3388,158.2,158.12,22.3399]
[1718217057886,9.3531,158.24,158.11,2.34]
[1718217058084,2.3388,158.2,158.12,2.3399]
[1718217058400,0.17,158.19,158.13,2.3397]
[1718217058587,0.17,158.19,158.1,31.7012]
[1718217058588,2.509,158.19,158.1,20.0]
[1718217058791,0.17,158.18,158.09,22.3403]
[1718217058994,0.17,158.18,158.07,0.17]
[1718217058995,0.34,158.19,158.1,20.0]
[1718217059194,2.3392,158.17,158.09,2.3403]
[1718217059395,2.3392,158.17,158.07,0.17]
[1718217059396,0.34,158.18,158.1,2.3402]
[1718217059602,0.17,158.17,158.1,2.3402]
[1718217059804,2.3394,158.16,158.04,4.99809682]
[1718217059980,0.17,158.15,158.06,7.0225]
[1718217060183,0.17,158.19,158.09,9.3615]
[1718217060379,0.51,158.19,158.11,4.6801]
[1718217060681,0.17,158.22,158.14,2.3396]
[1718217060887,0.17,158.22,158.11,2.34]
[1718217060888,2.3388,158.2,158.11,2.34]
[1718217061092,2.3387,158.21,158.12,2.3399]
[1718217061279,2.6785,158.22,158.1,36.3818]
[1718217061485,11.6954,158.29,158.12,100.0]
[1718217061685,2.3378,158.27,158.18,2.339]
[1718217062297,11.6863,158.31,158.17,0.17]
[1718217062496,2.3374,158.29,158.17,12.2061]
[1718217062692,2.3374,158.29,158.18,20.0]
[1718217062887,4.6735,158.34,158.18,24.6779]
[1718217063087,2.3372,158.31,158.18,24.6779]
[1718217063289,2.3369,158.33,158.2,4.6775]
[1718217063483,6.54655033,158.36,158.19,0.51]
[1718217063783,261.9364,158.37,158.27,2.3377]
[1718217063985,261.9364,158.37,158.28,2.3376]
[1718217064214,2.3357,158.42,158.29,4.6749]
[1718217064423,2.3356,158.42,158.3,0.34]
[1718217064594,259.6,158.46,158.29,0.17]
[1718217064800,9.3408,158.45,158.29,2.3374]
[1718217064986,9.3408,158.45,158.28,20.17]
[1718217064987,2.3358,158.41,158.31,2.3371]
[1718217065193,2.3353,158.44,158.29,100.0]
[1718217065385,2.3351,158.45,158.31,4.6743]
[1718217065590,259.6,158.46,158.3,20.0]
[1718217065810,2.3355,158.42,158.3,20.0]
[1718217066109,2.3355,158.42,158.32,2.337]
[1718217066413,2.3352,158.44,158.34,2.3367]
[1718217066613,2.3352,158.45,158.35,2.3364]
[1718217066810,2.3345,158.5,158.4,2.3358]
[1718217067010,20.0,158.51,158.41,2.3356]
[1718217067011,22.3342,158.51,158.41,2.3356]
[1718217067311,22.3342,158.51,158.43,104.6708]
[1718217067312,20.0,158.51,158.43,104.6708]
[1718217067492,20.0,158.51,158.47,2.3347]
[1718217067810,20.0,158.51,158.46,2.3349]
[1718217068111,20.0,158.51,158.44,20.0]
[1718217068407,20.0,158.51,158.4,0.17]
[1718217068806,20.0,158.51,158.4,100.0]
[1718217069012,20.0,158.51,158.43,0.17]
[1718217069310,20.0,158.51,158.5,2.3343]
[1718217069690,259.6,158.58,158.53,2.3339]
[1718217069909,6.9955,158.68,158.52,2.334]
[1718217070204,2.3326,158.62,158.5,20.0]
[1718217070434,9.3304,158.63,158.5,20.0]
[1718217070596,6.9983,158.61,158.45,2.335]
[1718217070800,2.3335,158.56,158.45,2.335]
[1718217071012,58.69524185,158.68,158.46,100.17]
[1718217071196,58.69524185,158.68,158.47,20.17]
[1718217071197,4.664,158.66,158.47,20.17]
[1718217071506,126.89,158.72,158.54,2.3337]
[1718217071507,11.6583,158.69,158.54,2.3337]
[1718217071687,19.0,158.7,158.51,20.0]
[1718217071999,2.3326,158.63,158.52,2.334]
[1718217072186,2.3326,158.63,158.5,0.17]
[1718217072187,2.3329,158.6,158.5,2.3342]
[1718217072386,101.09661692,158.68,158.46,26.89]
[1718217072587,2.3338,158.54,158.44,2.3351]
[1718217072788,2.334,158.53,158.43,2.3353]
[1718217073007,2.3336,158.56,158.42,100.0]
[1718217073204,9.3284,158.66,158.44,100.0]
[1718217073405,9.3284,158.66,158.52,2.3339]
[1718217073406,0.17,158.62,158.52,2.3339]
[1718217073708,0.17,158.62,158.5,2.3342]
[1718217073709,2.3329,158.6,158.5,2.3342]
[1718217073919,2.3325,158.63,158.49,100.0]
[1718217074090,4.6637,158.67,158.54,2.3336]
[1718217074402,2.3322,158.65,158.54,2.3336]
[1718217074608,2.3319,158.67,158.51,0.17]
[1718217074804,16.3189,158.71,158.51,0.17]